fUSD/lending_fUSD_20250103
["ID","MTS","AMOUNT","RATE_DAILY","PERIOD"]
[347597786,1735938643648,-241.77,0.00012271,2]
[347597787,1735938643660,-182.469953,0.00012271,2]
[347597788,1735938643671,-181.59,0.00012271,2]
[347597789,1735938643682,-500.0,0.00012271,2]
[347597790,1735938643693,-500.0,0.00012271,2]
[347597791,1735938643704,-500.0,0.00012271,2]
[347597792,1735938643716,-500.0,0.00012271,2]
[347597793,1735938643729,-500.0,0.00012271,2]
[347597794,1735938643741,-500.0,0.00012271,2]
[347597795,1735938643753,-157.98,0.00012271,2]
[347597796,1735938643765,-646.52,0.00012271,2]
[347597797,1735938643779,-500.0,0.00012271,2]
[347597798,1735938643790,-198.66,0.00012271,2]
[347597799,1735938643801,-2130.73,0.00012271,2]
[347597800,1735938643813,-500.0,0.00012271,2]
[347597801,1735938643824,-217.54276544,0.00012271,2]
[347597802,1735938643836,-500.0,0.00012271,2]
[347597803,1735938643849,-292.35,0.00012271,2]
[347597804,1735938643861,-500.0,0.00012271,2]
[347597805,1735938643872,-500.0,0.00012271,2]
[347597806,1735938643884,-500.0,0.00012271,2]
[347597807,1735938643898,-500.0,0.00012271,2]
[347597808,1735938643910,-265.52,0.00012271,2]
[347597809,1735938643921,-500.0,0.00012271,2]
[347597810,1735938643933,-500.0,0.00012271,2]
[347597811,1735938643944,-500.0,0.00012271,2]
[347597812,1735938643958,-500.0,0.00012271,2]
[347597813,1735938643972,-500.0,0.00012271,2]
[347597814,1735938643985,-500.0,0.00012271,2]
[347597815,1735938643998,-500.0,0.00012271,2]
[347597816,1735938644011,-500.0,0.00012271,2]
[347597817,1735938644023,-500.0,0.00012271,2]
[347597818,1735938644035,-500.0,0.00012271,2]
[347597819,1735938644047,-500.0,0.00012271,2]
[347597820,1735938644059,-545.83,0.00012271,2]
[347597821,1735938644071,-500.0,0.00012271,2]
[347597822,1735938644082,-169.45,0.00012271,2]
[347597823,1735938644094,-51.84708055,0.00012271,2]
[347597824,1735938644126,-448.15291945,0.00012271,2]
[347597825,1735938644138,-38.71811055,0.00012271,2]
[347597826,1735938644169,-461.28188945,0.00012271,2]
[347597827,1735938644182,-500.0,0.00012271,2]
[347597828,1735938644195,-600.15812555,0.00012271,2]
[347597829,1735938645402,-274.176,0.00011997,2]
[347597830,1735938645413,-225.824,0.00011997,2]
[347597831,1735938645422,-413.24580854,0.00012271,2]
[347597832,1735938645436,-498.11606591,0.00012271,2]
[347597833,1735938645448,-500.0,0.00012271,2]
[347597834,1735938645457,-500.0,0.00012271,2]
[347597835,1735938645466,-500.0,0.00012271,2]
[347597836,1735938645475,-500.0,0.00012271,2]
[347597837,1735938645484,-500.0,0.00012271,2]
[347597838,1735938645493,-500.0,0.00012271,2]
[347597839,1735938645502,-500.0,0.00012271,2]
[347597840,1735938645513,-502.53,0.00012271,2]
[347597841,1735938645523,-630.13,0.00012271,2]
[347597842,1735938645532,-500.0,0.00012271,2]
[347597843,1735938645541,-500.0,0.00012271,2]
[347597844,1735938645550,-500.0,0.00012271,2]
[347597845,1735938645561,-500.0,0.00012271,2]
[347597846,1735938645572,-98.02864701,0.00012271,2]
[347597847,1735938645587,-401.97135299,0.00012271,2]
[347597848,1735938645600,-144.59176759,0.00012271,2]
[347597849,1735938645611,-451.76823241,0.00012271,2]
[347597850,1735938645622,-500.0,0.00012271,2]
[347597851,1735938645631,-500.0,0.00012271,2]
[347597852,1735938645641,-500.0,0.00012271,2]
[347597853,1735938645650,-500.0,0.00012271,2]
[347597854,1735938645660,-500.0,0.00012271,2]
[347597855,1735938645671,-500.0,0.00012271,2]
[347597856,1735938645681,-500.0,0.00012271,2]
[347597857,1735938645690,-500.0,0.00012271,2]
[347597858,1735938645701,-500.0,0.00012271,2]
[347597859,1735938645711,-500.0,0.00012271,2]
[347597860,1735938645723,-500.0,0.00012271,2]
[347597861,1735938645733,-500.0,0.00012271,2]
[347597862,1735938645743,-500.0,0.00012271,2]
[347597863,1735938645752,-500.0,0.00012271,2]
[347597865,1735938645762,-500.0,0.00012271,2]
[347597867,1735938645771,-500.0,0.00012271,2]
[347597868,1735938645781,-615.96,0.00012271,2]
[347597869,1735938645793,-500.0,0.00012271,2]
[347597870,1735938645803,-500.0,0.00012271,2]
[347597871,1735938645813,-1986.78,0.00012271,2]
[347597872,1735938645823,-500.0,0.00012271,2]
[347597873,1735938645833,-500.0,0.00012271,2]
[347597874,1735938645842,-500.0,0.00012271,2]
[347597875,1735938645852,-500.0,0.00012271,2]
[347597876,1735938645862,-777.31,0.00012271,2]
[347597877,1735938645871,-500.0,0.00012271,2]
[347597878,1735938645880,-500.0,0.00012271,2]
[347597879,1735938645889,-500.0,0.00012271,2]
[347597880,1735938645899,-350.04,0.00012271,2]
[347597881,1735938645908,-500.0,0.00012271,2]
[347597882,1735938645917,-500.0,0.00012271,2]
[347597883,1735938645926,-551.72,0.00012271,2]
[347597884,1735938645935,-500.0,0.00012271,2]
[347597885,1735938645945,-500.0,0.00012271,2]
[347597886,1735938645955,-500.0,0.00012271,2]
[347597887,1735938645968,-500.0,0.00012271,2]
[347597888,1735938645979,-500.0,0.00012271,2]
[347597889,1735938645990,-500.0,0.00012271,2]
[347597890,1735938646000,-500.0,0.00012271,2]
[347597891,1735938646009,-500.0,0.00012271,2]
[347597892,1735938646019,-182.98,0.00012271,2]
[347597893,1735938646028,-500.0,0.00012271,2]
[347597894,1735938646038,-1548.93,0.00012271,2]
[347597895,1735938646047,-500.0,0.00012271,2]
[347597896,1735938646057,-205.9,0.00012271,2]
[347597897,1735938646068,-500.0,0.00012271,2]
[347597898,1735938646077,-500.0,0.00012271,2]
[347597899,1735938646087,-500.0,0.00012271,2]
[347597900,1735938646097,-265.16,0.00012271,2]
[347597901,1735938646107,-500.0,0.00012271,2]
[347597902,1735938646116,-214.51,0.00012271,2]
[347597903,1735938646127,-500.0,0.00012271,2]
[347597904,1735938646137,-500.0,0.00012271,2]
[347597905,1735938646147,-500.0,0.00012271,2]
[347597906,1735938646156,-500.0,0.00012271,2]
[347597907,1735938646166,-296.46,0.00012271,2]
[347597908,1735938646175,-1500.35,0.00012271,2]
[347597909,1735938646186,-500.0,0.00012271,2]
[347597910,1735938646195,-637.41,0.00012271,2]
[347597911,1735938646204,-500.0,0.00012271,2]
[347597912,1735938646213,-500.0,0.00012271,2]
[347597913,1735938646223,-500.0,0.00012271,2]
[347597914,1735938646232,-500.0,0.00012271,2]
[347597915,1735938646241,-500.0,0.00012271,2]
[347597916,1735938646250,-500.0,0.00012271,2]
[347597917,1735938646261,-500.0,0.00012271,2]
[347597918,1735938646272,-500.0,0.00012271,2]
[347597919,1735938646282,-500.0,0.00012271,2]
[347597920,1735938646291,-500.0,0.00012271,2]
[347597921,1735938646301,-1020.54,0.00012271,2]
[347597922,1735938646310,-258.41,0.00012271,2]
[347597923,1735938646319,-500.0,0.00012271,2]
[347597924,1735938646329,-779.9,0.00012272,2]
[347597925,1735938646338,-1914.23,0.00012272,2]
[347597926,1735938646348,-1200.62,0.00012272,2]
[347597927,1735938646358,-564.9,0.00012272,2]
[347597928,1735938646367,-500.0,0.00012272,2]
[347597929,1735938646378,-500.0,0.00012272,2]
[347597930,1735938646387,-500.0,0.00012272,2]
[347597931,1735938646396,-500.0,0.00012272,2]
[347597932,1735938646406,-500.0,0.00012272,2]
[347597933,1735938646415,-500.0,0.00012272,2]
[347597934,1735938646424,-500.0,0.00012272,2]
[347597935,1735938646433,-1111.44,0.00012272,2]
[347597936,1735938646443,-910.51,0.00012272,2]
[347597937,1735938646452,-1632.7,0.00012272,2]
[347597938,1735938646461,-5131.05,0.00012272,2]
[347597939,1735938646470,-500.0,0.00012272,2]
[347597940,1735938646480,-500.0,0.00012272,2]
[347597941,1735938646488,-500.0,0.00012272,2]
[347597942,1735938646498,-500.0,0.00012273,2]
[347597943,1735938646507,-500.0,0.00012273,2]
[347597944,1735938646516,-1113.85,0.00012273,2]
[347597945,1735938646525,-11498.2427794,0.00012296,2]
[347597946,1735938646534,-500.0,0.00012298,2]
[347597947,1735938646543,-1153.0,0.00012298,2]
[347597948,1735938646552,-44459.49673603,0.000123,2]
[347597949,1735938646561,-84472.52249897,0.000123,2]
[347597950,1735938646574,-686.03253807,0.000123,2]
[347597951,1735938646584,-1423.095,0.000123,2]
[347597952,1735938646597,-1827.4623212,0.000123,2]
[347597953,1735938646607,-809.98594867,0.000123,2]
[347597954,1735938646620,-47616.19857848,0.000123,2]
[347597955,1735938646633,-4975.51485734,0.000123,2]
[347597956,1735938646646,-2715.84665235,0.000123,2]
[347597957,1735938646657,-2238.99168339,0.000123,2]
[347597958,1735938646670,-665.17985081,0.000123,2]
[347597959,1735938646696,-402.28202938,0.000123,2]
[347597960,1735938646707,-25012.67966937,0.000123,2]
[347597961,1735938646902,-1102.0,0.00011901,2]
[347597962,1735938646912,-259881.00555835,0.000123,2]
[347597963,1735938646927,-26786.45,0.000123,2]
[347597964,1735938646941,-350.79000003,0.000123,2]
[347597965,1735938646962,-475.51,0.000123,2]
[347597966,1735938647053,-500.0,0.00011997,2]
[347597967,1735938647063,-500.0,0.00012271,2]
[347597968,1735938647071,-79.55392289,0.000123,2]
[347597969,1735938647082,-23587.32902737,0.000123,2]
[347597970,1735938647098,-3189.506688,0.000123,2]
[347597971,1735938647109,-600.0,0.000123,2]
[347597972,1735938647120,-1721.64109677,0.000123,2]
[347597973,1735938647839,-500.0,0.00011998,2]
[347597974,1735938647849,-15227.32130979,0.000123,2]
[347597975,1735938647860,-26486.474563,0.000123,2]
[347597976,1735938647875,-4337.58033962,0.000123,2]
[347597977,1735938647886,-9287.26006,0.000123,2]
[347597978,1735938647896,-569.554793,0.000123,2]
[347597979,1735938647914,-376.75212113,0.00012179,2]
[347597980,1735938647931,-281.84004911,0.00012179,2]
[347597981,1735938647944,-307.80782976,0.00012179,2]
[347597982,1735938647953,-500.0,0.00012272,2]
[347597983,1735938647963,-885218.40495626,0.000123,2]
[347597984,1735938647974,-1039.449305,0.000123,2]
[347597985,1735938647987,-10992.024575,0.000123,2]
[347597986,1735938648000,-1000.0,0.000123,2]
[347597987,1735938904654,152.45994978,0.000123,30]
[347597989,1735939135408,500.0,0.0002,120]
[347597994,1735939759228,-465.41,8.836e-05,2]
[347597998,1735939831979,-4956.70037219,9.613e-05,2]
[347597999,1735939831988,-180.19654359,0.0001,2]
[347598000,1735939831998,-160.51,0.00010137,2]
[347598001,1735939832007,-152.0,0.00010391,3]
[347598002,1735939832017,-250.0,0.00010509,2]
[347598003,1735939832026,-16098.89,0.00010529,2]
[347598004,1735939832036,-1000.0,0.00010559,2]
[347598005,1735939832046,-924.38,0.00010561,2]
[347598006,1735939832055,-250.0,0.00010692,2]
[347598007,1735939832064,-256.19,0.00010737,2]
[347598008,1735939832073,-250.0,0.00010853,2]
[347598009,1735939832083,-2000.0,0.0001094,2]
[347598010,1735939832093,-993.50515948,0.00010969,2]
[347598011,1735939832102,-993.50515948,0.00010978,2]
[347598012,1735939832113,-2656.12180886,0.00010978,2]
[347598013,1735939832125,-1459.35773201,0.00010978,2]
[347598014,1735939832143,-564.1750084,0.00010978,2]
[347598015,1735939832156,-1065.64580849,0.00010978,2]
[347598016,1735939832166,-729.85745174,0.00010978,2]
[347598017,1735939832178,-5015.44290602,0.00010978,2]
[347598018,1735939832187,-993.50515948,0.00010986,2]
[347598019,1735939832196,-993.50515948,0.00010987,2]
[347598020,1735939832206,-993.50515948,0.00010987,2]
[347598021,1735939832215,-993.50515948,0.00010991,2]
[347598022,1735939832226,-5745.30035776,0.00010991,2]
[347598023,1735939832236,-5745.30035776,0.00010993,2]
[347598024,1735939832245,-5745.30035776,0.00010993,2]
[347598025,1735939832255,-5745.30035776,0.00010994,2]
[347598026,1735939832264,-150.0,0.00011047,2]
[347598027,1735939832274,-150.0,0.00011047,2]
[347598028,1735939832283,-150.0,0.00011047,2]
[347598029,1735939832292,-3916.85,0.00011063,2]
[347598030,1735939832302,-465.41,0.000111,2]
[347598031,1735939832312,-1500.0,0.00011159,2]
[347598032,1735939832321,-166.71,0.00011232,2]
[347598033,1735939832332,-3776.53082574,0.00011249,2]
[347598035,1735939832342,-400.0,0.00011251,2]
[347598037,1735939832351,-436.65,0.00011479,2]
[347598039,1735939832360,-152.0,0.00011565,4]
[347598041,1735939832369,-150.0,0.00011578,2]
[347598043,1735939832378,-436.86,0.00011578,2]
[347598044,1735939832388,-300.0,0.00011578,2]
[347598046,1735939832398,-978.95,0.00011578,2]
[347598047,1735939832407,-300.0,0.00011578,2]
[347598048,1735939832417,-150.0,0.00011578,2]
[347598049,1735939832426,-978.95,0.00011578,2]
[347598050,1735939832435,-150.0,0.00011578,2]
[347598051,1735939832445,-436.86,0.00011578,2]
[347598052,1735939832454,-978.95,0.00011578,2]
[347598053,1735939832464,-150.0,0.00011578,2]
[347598054,1735939832473,-150.0,0.00011578,2]
[347598055,1735939832482,-978.95,0.00011578,2]
[347598056,1735939832491,-150.0,0.00011578,2]
[347598057,1735939832501,-150.0,0.00011578,2]
[347598058,1735939832510,-978.95,0.00011578,2]
[347598059,1735939832519,-976.58,0.00011578,2]
[347598060,1735939832528,-150.0,0.00011578,2]
[347598061,1735939832537,-150.0,0.00011578,2]
[347598063,1735939832547,-301.123,0.0001168,2]
[347598064,1735939832556,-29547.0,0.0001178,2]
[347598065,1735939832567,-385.6819,0.00011792,2]
[347598066,1735939832578,-7799.5641,0.00011792,2]
[347598067,1735939832587,-500.0,0.00011873,2]
[347598068,1735939832596,-359.02289266,0.00011873,2]
[347598069,1735939832606,-1000.0,0.00011879,2]
[347598070,1735939832617,-500.0,0.00011892,2]
[347598071,1735939832627,-500.0,0.00011892,2]
[347598072,1735939832637,-500.0,0.00011892,2]
[347598073,1735939832647,-500.0,0.00011892,2]
[347598074,1735939832656,-500.0,0.00011892,2]
[347598075,1735939832665,-500.0,0.00011892,2]
[347598076,1735939832674,-500.0,0.00011892,2]
[347598077,1735939832684,-500.0,0.00011892,2]
[347598078,1735939832693,-500.0,0.00011892,2]
[347598079,1735939832702,-500.0,0.00011892,2]
[347598080,1735939832711,-575.48,0.00011892,2]
[347598081,1735939832720,-500.0,0.00011892,2]
[347598082,1735939832730,-529.49,0.00011892,2]
[347598083,1735939832740,-599.84,0.00011892,2]
[347598084,1735939832750,-500.0,0.00011892,2]
[347598085,1735939832759,-500.0,0.00011892,2]
[347598086,1735939832769,-500.0,0.00011892,2]
[347598087,1735939832778,-500.0,0.00011892,2]
[347598088,1735939832787,-500.0,0.00011892,2]
[347598089,1735939832796,-500.0,0.00011892,2]
[347598090,1735939832805,-500.0,0.00011892,2]
[347598091,1735939832815,-500.0,0.00011892,2]
[347598092,1735939832824,-500.0,0.00011892,2]
[347598093,1735939832833,-500.0,0.00011892,2]
[347598094,1735939832842,-500.0,0.00011892,2]
[347598095,1735939832851,-500.0,0.00011892,2]
[347598096,1735939832860,-500.0,0.00011892,2]
[347598097,1735939832869,-865.69,0.00011892,2]
[347598098,1735939832879,-624.36,0.00011892,2]
[347598099,1735939832890,-575.88,0.00011892,2]
[347598100,1735939832900,-719.01,0.00011892,2]
[347598101,1735939832910,-500.0,0.00011892,2]
[347598102,1735939832920,-516.1,0.00011892,2]
[347598103,1735939832930,-500.0,0.00011892,2]
[347598104,1735939832939,-500.0,0.00011892,2]
[347598105,1735939832948,-500.0,0.00011892,2]
[347598106,1735939832958,-500.0,0.00011892,2]
[347598107,1735939832969,-500.0,0.00011892,2]
[347598108,1735939832979,-500.0,0.00011892,2]
[347598109,1735939832989,-500.0,0.00011892,2]
[347598110,1735939832999,-603.33,0.00011892,2]
[347598111,1735939833009,-500.0,0.00011892,2]
[347598112,1735939833018,-572.51,0.00011892,2]
[347598113,1735939833027,-500.0,0.00011892,2]
[347598114,1735939833037,-500.0,0.00011892,2]
[347598115,1735939833047,-500.0,0.00011892,2]
[347598116,1735939833056,-500.0,0.00011892,2]
[347598117,1735939833066,-500.0,0.00011892,2]
[347598118,1735939833076,-500.0,0.00011892,2]
[347598119,1735939833085,-500.0,0.00011892,2]
[347598120,1735939833094,-573.41,0.00011892,2]
[347598121,1735939833104,-500.0,0.00011892,2]
[347598122,1735939833114,-500.0,0.00011892,2]
[347598123,1735939833123,-500.0,0.00011892,2]
[347598124,1735939833132,-500.0,0.00011892,2]
[347598125,1735939833142,-500.0,0.00011892,2]
[347598126,1735939833151,-1404.55,0.00011892,2]
[347598127,1735939833161,-500.0,0.00011892,2]
[347598128,1735939833170,-500.0,0.00011892,2]
[347598129,1735939833179,-547.57,0.00011892,2]
[347598130,1735939833189,-500.0,0.00011892,2]
[347598131,1735939833199,-500.0,0.00011892,2]
[347598132,1735939833208,-3441.03,0.00011892,2]
[347598133,1735939833217,-500.0,0.00011892,2]
[347598134,1735939833227,-500.0,0.00011892,2]
[347598135,1735939833236,-598.47,0.00011892,2]
[347598136,1735939833245,-500.0,0.00011892,2]
[347598137,1735939833255,-500.0,0.00011892,2]
[347598138,1735939833264,-500.0,0.00011892,2]
[347598139,1735939833273,-500.0,0.00011892,2]
[347598140,1735939833282,-590.99,0.00011892,2]
[347598141,1735939833291,-502.17,0.00011892,2]
[347598142,1735939833300,-560.02,0.00011892,2]
[347598143,1735939833310,-500.0,0.00011892,2]
[347598144,1735939833319,-843.99,0.00011892,2]
[347598145,1735939833328,-500.0,0.00011892,2]
[347598146,1735939833338,-515.48,0.00011892,2]
[347598147,1735939833347,-500.0,0.00011892,2]
[347598148,1735939833357,-500.0,0.00011892,2]
[347598149,1735939833366,-650.32,0.00011892,2]
[347598150,1735939833375,-500.0,0.00011892,2]
[347598151,1735939833386,-500.0,0.00011892,2]
[347598152,1735939833395,-500.0,0.00011892,2]
[347598153,1735939833404,-500.0,0.00011892,2]
[347598154,1735939833413,-594.95,0.00011892,2]
[347598155,1735939833423,-781.21,0.00011892,2]
[347598156,1735939833433,-500.0,0.00011892,2]
[347598157,1735939833442,-500.0,0.00011893,2]
[347598158,1735939833451,-500.0,0.00011893,2]
[347598159,1735939833461,-500.0,0.00011893,2]
[347598160,1735939833470,-3594.48,0.00011893,2]
[347598161,1735939833480,-500.0,0.00011893,2]
[347598162,1735939833489,-500.0,0.00011893,2]
[347598163,1735939833499,-1215.33,0.00011893,2]
[347598164,1735939833508,-818.92,0.00011893,2]
[347598165,1735939833517,-1734.74,0.00011893,2]
[347598166,1735939833526,-946.35,0.00011893,2]
[347598167,1735939833537,-792.95,0.00011893,2]
[347598168,1735939833546,-500.0,0.00011893,2]
[347598169,1735939833555,-1000.0,0.00011893,2]
[347598170,1735939833567,-897.83,0.00011893,2]
[347598171,1735939833578,-737.06,0.00011893,2]
[347598172,1735939833588,-500.0,0.00011898,2]
[347598173,1735939833597,-889.97,0.00011898,2]
[347598174,1735939833607,-500.0,0.00011898,2]
[347598175,1735939833617,-757.71,0.00011898,2]
[347598176,1735939833627,-3140.2,0.00011898,2]
[347598177,1735939833638,-500.0,0.00011898,2]
[347598178,1735939833649,-500.0,0.00011898,2]
[347598179,1735939833660,-547.69,0.00011898,2]
[347598180,1735939833670,-500.0,0.00011898,2]
[347598181,1735939833680,-905.65,0.00011898,2]
[347598182,1735939833690,-500.0,0.00011898,2]
[347598183,1735939833699,-1035.65,0.00011898,2]
[347598184,1735939833708,-2333.0,0.00011898,2]
[347598185,1735939833717,-1078.8,0.00011898,2]
[347598186,1735939833727,-500.0,0.00011898,2]
[347598187,1735939833737,-500.0,0.00011898,2]
[347598188,1735939833746,-985.65,0.00011898,2]
[347598189,1735939833756,-500.0,0.00011898,2]
[347598190,1735939833765,-500.0,0.00011898,2]
[347598191,1735939833776,-996.78,0.00011898,2]
[347598192,1735939833785,-721.71,0.00011898,2]
[347598193,1735939833794,-500.0,0.00011898,2]
[347598194,1735939833803,-638.57,0.00011898,2]
[347598195,1735939833813,-500.0,0.00011898,2]
[347598196,1735939833822,-500.0,0.00011898,2]
[347598197,1735939833831,-500.0,0.00011898,2]
[347598198,1735939833841,-500.0,0.00011898,2]
[347598199,1735939833851,-476.66995759,0.00011898,2]
[347598200,1735939833861,-500.0,0.00011898,2]
[347598201,1735939833871,-681.04,0.00011898,2]
[347598202,1735939833882,-500.0,0.00011898,2]
[347598203,1735939833892,-500.0,0.00011898,2]
[347598204,1735939834109,-500.0,0.00011898,2]
[347598205,1735939834120,-500.0,0.00011898,2]
[347598206,1735939834130,-500.0,0.00011898,2]
[347598207,1735939834140,-500.0,0.00011898,2]
[347598208,1735939834150,-500.0,0.00011898,2]
[347598209,1735939834159,-500.0,0.00011899,2]
[347598210,1735939834169,-500.0,0.00011899,2]
[347598211,1735939834179,-500.0,0.00011899,2]
[347598212,1735939834189,-500.0,0.00011899,2]
[347598213,1735939834199,-500.0,0.00011899,2]
[347598214,1735939834208,-500.0,0.00011899,2]
[347598215,1735939834218,-500.0,0.00011899,2]
[347598216,1735939834228,-500.0,0.00011899,2]
[347598217,1735939834238,-500.0,0.00011899,2]
[347598218,1735939834247,-500.0,0.00011899,2]
[347598219,1735939834256,-500.0,0.00011899,2]
[347598220,1735939834265,-500.0,0.00011899,2]
[347598221,1735939834275,-500.0,0.00011899,2]
[347598222,1735939834284,-500.0,0.00011899,2]
[347598223,1735939834294,-500.0,0.00011899,2]
[347598224,1735939834303,-500.0,0.00011899,2]
[347598225,1735939834313,-500.0,0.00011899,2]
[347598226,1735939834323,-226.39350654,0.00011899,2]
[347598227,1735939834333,-500.0,0.00011899,2]
[347598228,1735939834343,-248.99858272,0.00011899,2]
[347598229,1735939834352,-500.0,0.00011899,2]
[347598230,1735939834362,-500.0,0.00011899,2]
[347598231,1735939834372,-500.0,0.00011899,2]
[347598232,1735939834382,-500.0,0.00011899,2]
[347598233,1735939834392,-500.0,0.00011899,2]
[347598234,1735939834402,-500.0,0.00011899,2]
[347598235,1735939834412,-585.04,0.00011899,2]
[347598236,1735939834421,-500.0,0.00011899,2]
[347598237,1735939834431,-542.96,0.00011899,2]
[347598238,1735939834440,-500.0,0.00011899,2]
[347598239,1735939834450,-500.0,0.00011899,2]
[347598240,1735939834459,-500.0,0.00011899,2]
[347598241,1735939834469,-500.0,0.00011899,2]
[347598242,1735939834478,-500.0,0.00011899,2]
[347598243,1735939834487,-500.0,0.00011899,2]
[347598244,1735939834496,-500.0,0.00011899,2]
[347598245,1735939834505,-500.0,0.00011899,2]
[347598246,1735939834514,-500.0,0.00011899,2]
[347598247,1735939834523,-500.0,0.00011899,2]
[347598248,1735939834533,-500.0,0.00011899,2]
[347598249,1735939834542,-500.0,0.00011899,2]
[347598250,1735939834552,-500.0,0.00011899,2]
[347598251,1735939834561,-500.0,0.00011899,2]
[347598252,1735939834575,-500.0,0.00011899,2]
[347598253,1735939834584,-500.0,0.00011899,2]
[347598254,1735939834593,-500.0,0.00011899,2]
[347598255,1735939834602,-569.57,0.00011899,2]
[347598256,1735939834611,-500.0,0.00011899,2]
[347598257,1735939834622,-331.31538091,0.00011899,2]
[347598258,1735939834632,-500.0,0.00011899,2]
[347598259,1735939834641,-500.0,0.00011899,2]
[347598260,1735939834651,-607.08,0.00011899,2]
[347598261,1735939834661,-500.0,0.00011899,2]
[347598262,1735939834671,-500.0,0.00011899,2]
[347598263,1735939834681,-603.51,0.00011899,2]
[347598264,1735939834690,-500.0,0.00011899,2]
[347598265,1735939834699,-500.0,0.00011899,2]
[347598266,1735939834709,-500.0,0.00011899,2]
[347598267,1735939834718,-567.93,0.00011899,2]
[347598268,1735939834728,-592.26511111,0.00011899,2]
[347598269,1735939834740,-551.88,0.00011899,2]
[347598270,1735939834749,-500.0,0.00011899,2]
[347598271,1735939834758,-500.0,0.00011899,2]
[347598272,1735939834767,-532.67,0.00011899,2]
[347598273,1735939834776,-500.0,0.00011899,2]
[347598274,1735939834787,-500.0,0.00011899,2]
[347598275,1735939834795,-500.0,0.00011899,2]
[347598276,1735939834806,-500.0,0.00011899,2]
[347598277,1735939834815,-500.0,0.00011899,2]
[347598278,1735939834825,-500.0,0.00011899,2]
[347598279,1735939834834,-500.0,0.00011899,2]
[347598280,1735939834843,-500.0,0.00011899,2]
[347598281,1735939834853,-500.0,0.00011899,2]
[347598282,1735939834862,-500.0,0.00011899,2]
[347598283,1735939834871,-500.0,0.00011899,2]
[347598284,1735939834881,-500.0,0.00011899,2]
[347598285,1735939834890,-500.0,0.00011899,2]
[347598286,1735939834900,-630.56,0.00011899,2]
[347598287,1735939834910,-500.0,0.00011899,2]
[347598288,1735939834919,-500.0,0.00011899,2]
[347598289,1735939834930,-500.0,0.00011899,2]
[347598290,1735939834939,-500.0,0.00011899,2]
[347598291,1735939834951,-500.0,0.00011899,2]
[347598292,1735939834961,-500.0,0.00011899,2]
[347598293,1735939834971,-500.0,0.00011899,2]
[347598294,1735939834980,-500.0,0.00011899,2]
[347598295,1735939834989,-500.0,0.00011899,2]
[347598296,1735939834999,-209.51449709,0.00011899,2]
[347598297,1735939835009,-500.0,0.00011899,2]
[347598298,1735939835019,-537.82,0.00011899,2]
[347598299,1735939835028,-500.0,0.00011899,2]
[347598300,1735939835038,-500.0,0.00011899,2]
[347598301,1735939835048,-500.0,0.00011899,2]
[347598302,1735939835057,-500.0,0.00011899,2]